[Event "Titled Tuesday Blitz August 08 Early 2023"]
[White "Hrescak, Ivana"]
[Black "Baches Garcia, Guillermo"]
[WhiteFideId "14613441"]
[BlackFideId "2209764"]
[WhiteElo "2232"]
[BlackElo "2433"]
[Result "0-1"]
[Round "11"]
[TimeControl "180+1"]
[Date "2023.08.08"]
[WhiteClock "0:01:20"]
[BlackClock "0:00:25"]
[Board "129"]

1. e4 {[%clk 0:03:00]}  c5 {[%clk 0:02:55]} 2. Nf3 {[%clk 0:03:01]}  d6 {[%clk 0:02:56]} 3. Bb5+ {[%clk 0:03:01]}  Bd7 {[%clk 0:02:56]} 4. Bxd7+ {[%clk 0:03:01]}  Qxd7 {[%clk 0:02:57]} 5. O-O {[%clk 0:03:00]}  Nf6 {[%clk 0:02:56]} 6. Qe2 {[%clk 0:03:00]}  Nc6 {[%clk 0:02:55]} 7. c3 {[%clk 0:03:01]}  e6 {[%clk 0:02:54]} 8. d4 {[%clk 0:03:01]}  cxd4 {[%clk 0:02:55]} 9. cxd4 {[%clk 0:03:02]}  d5 {[%clk 0:02:55]} 10. e5 {[%clk 0:03:01]}  Ne4 {[%clk 0:02:55]} 11. Nbd2 {[%clk 0:03:02]}  Nxd2 {[%clk 0:02:54]} 12. Bxd2 {[%clk 0:03:02]}  Be7 {[%clk 0:02:53]} 13. g3 {[%clk 0:03:02]}  O-O {[%clk 0:02:52]} 14. h4 {[%clk 0:03:02]}  Bd8 {[%clk 0:02:44]} 15. Kg2 {[%clk 0:03:01]}  Bb6 {[%clk 0:02:43]} 16. Bc3 {[%clk 0:02:57]}  Rac8 {[%clk 0:02:40]} 17. Rad1 {[%clk 0:02:52]}  Ba5 {[%clk 0:02:38]} 18. Qd3 {[%clk 0:02:42]}  h6 {[%clk 0:02:34]} 19. Bxa5 {[%clk 0:02:33]}  Nxa5 {[%clk 0:02:33]} 20. b3 {[%clk 0:02:31]}  Qc6 {[%clk 0:02:22]} 21. Rc1 {[%clk 0:02:28]}  Qd7 {[%clk 0:02:12]} 22. Qd2 {[%clk 0:02:24]}  Qb5 {[%clk 0:02:03]} 23. Rc3 {[%clk 0:02:11]}  Rc6 {[%clk 0:01:55]} 24. Rfc1 {[%clk 0:02:06]}  Rfc8 {[%clk 0:01:54]} 25. Rc5 {[%clk 0:02:00]}  Rxc5 {[%clk 0:01:40]} 26. Rxc5 {[%clk 0:01:59]}  Rxc5 {[%clk 0:01:39]} 27. dxc5 {[%clk 0:01:59]}  Nc6 {[%clk 0:01:30]} 28. Qc3 {[%clk 0:01:52]}  Qe2 {[%clk 0:01:21]} 29. a3 {[%clk 0:01:42]}  d4 {[%clk 0:01:10]} 30. Nxd4 {[%clk 0:01:42]}  Qxe5 {[%clk 0:00:51]} 31. Nb5 {[%clk 0:01:42]}  Qd5+ {[%clk 0:00:42]} 32. Kh2 {[%clk 0:01:35]}  Ne5 {[%clk 0:00:32]} 33. Nd4 {[%clk 0:01:24]}  Qxd4 {[%clk 0:00:31]} 34. Qxd4 {[%clk 0:01:25]}  Nf3+ {[%clk 0:00:31]} 35. Kg2 {[%clk 0:01:25]}  Nxd4 {[%clk 0:00:31]} 36. b4 {[%clk 0:01:24]}  Kf8 {[%clk 0:00:27]} 37. f4 {[%clk 0:01:19]}  Nc2 {[%clk 0:00:27]} 38. b5 {[%clk 0:01:19]}  Nxa3 {[%clk 0:00:26]} 39. b6 {[%clk 0:01:19]}  axb6 {[%clk 0:00:26]} 40. cxb6 {[%clk 0:01:19]}  Nc4 {[%clk 0:00:26]} 41. Kf3 {[%clk 0:01:20]}  Nxb6 {[%clk 0:00:26]} 42. Ke3 {[%clk 0:01:21]}  h5 {[%clk 0:00:25]} 43. Kd4 {[%clk 0:01:21]}  Nd5 {[%clk 0:00:25]} 44. Kc5 {[%clk 0:01:21]}  g6 {[%clk 0:00:25]} 45. Kb5 {[%clk 0:01:20]}  b6 {[%clk 0:00:25]} 46. Kc6 {[%clk 0:01:20]}  Ke7 {[%clk 0:00:25]} 47. Kb5 {[%clk 0:01:21]}  Kf6 {[%clk 0:00:25]} 48. Kc6 {[%clk 0:01:20]}  Kf5 {[%clk 0:00:25]} 0-1


[Site "https://www.chess.com"]

[Event "Titled Tuesday Blitz August 08 Early 2023"]
[White "Qiao, Cindy"]
[Black "cycygogne"]
[WhiteFideId "2620243"]
[WhiteElo "2393"]
[BlackElo "2195"]
[Result "1-0"]
[Round "11"]
[TimeControl "180+1"]
[Date "2023.08.08"]
[WhiteClock "0:00:28"]
[BlackClock "0:00:17"]
[Board "132"]

1. d4 {[%clk 0:03:00]}  Nf6 {[%clk 0:02:58]} 2. Bf4 {[%clk 0:03:00]}  c5 {[%clk 0:02:57]} 3. e3 {[%clk 0:03:00]}  d5 {[%clk 0:02:57]} 4. Nf3 {[%clk 0:02:59]}  Nc6 {[%clk 0:02:55]} 5. Nbd2 {[%clk 0:02:59]}  e6 {[%clk 0:02:46]} 6. c3 {[%clk 0:02:58]}  cxd4 {[%clk 0:02:45]} 7. exd4 {[%clk 0:02:59]}  Nh5 {[%clk 0:02:45]} 8. Bg5 {[%clk 0:02:58]}  f6 {[%clk 0:02:41]} 9. Bh4 {[%clk 0:02:58]}  g5 {[%clk 0:02:27]} 10. Nxg5 {[%clk 0:02:57]}  Ng7 {[%clk 0:02:18]} 11. Ngf3 {[%clk 0:02:53]}  Bd6 {[%clk 0:02:14]} 12. Bd3 {[%clk 0:02:49]}  O-O {[%clk 0:02:12]} 13. Bg3 {[%clk 0:02:33]}  e5 {[%clk 0:02:08]} 14. dxe5 {[%clk 0:02:24]}  fxe5 {[%clk 0:02:09]} 15. Be2 {[%clk 0:02:05]}  e4 {[%clk 0:02:05]} 16. Nd4 {[%clk 0:02:03]}  Nxd4 {[%clk 0:01:58]} 17. cxd4 {[%clk 0:02:04]}  Bxg3 {[%clk 0:01:58]} 18. hxg3 {[%clk 0:02:05]}  Qf6 {[%clk 0:01:58]} 19. O-O {[%clk 0:02:00]}  Nf5 {[%clk 0:01:51]} 20. Nb3 {[%clk 0:01:45]}  Qh6 {[%clk 0:01:46]} 21. Qc1 {[%clk 0:01:31]}  e3 {[%clk 0:01:45]} 22. g4 {[%clk 0:01:18]}  Nxd4 {[%clk 0:00:58]} 23. Nxd4 {[%clk 0:01:04]}  Bxg4 {[%clk 0:00:55]} 24. Bxg4 {[%clk 0:00:47]}  Rxf2 {[%clk 0:00:42]} 25. Rxf2 {[%clk 0:00:35]}  exf2+ {[%clk 0:00:43]} 26. Kxf2 {[%clk 0:00:36]}  Qh4+ {[%clk 0:00:28]} 27. Kg1 {[%clk 0:00:29]}  Qxg4 {[%clk 0:00:27]} 28. Qe3 {[%clk 0:00:29]}  Kh8 {[%clk 0:00:17]} 29. Qe5+ {[%clk 0:00:28]} 1-0


[Site "https://www.chess.com"]

[Event "Titled Tuesday Blitz August 08 Early 2023"]
[White "Mitrovic, Darko R"]
[Black "Ventura Bolet, Maxim"]
[WhiteFideId "927023"]
[BlackFideId "22238824"]
[WhiteElo "2175"]
[BlackElo "2376"]
[Result "0-1"]
[Round "11"]
[TimeControl "180+1"]
[Date "2023.08.08"]
[WhiteClock "0:00:00"]
[BlackClock "0:00:17"]
[Board "137"]

1. d4 {[%clk 0:03:00]}  Nf6 {[%clk 0:02:59]} 2. Nf3 {[%clk 0:03:01]}  g6 {[%clk 0:02:58]} 3. g3 {[%clk 0:03:01]}  Bg7 {[%clk 0:02:58]} 4. Bg2 {[%clk 0:03:02]}  O-O {[%clk 0:02:59]} 5. O-O {[%clk 0:03:03]}  d6 {[%clk 0:02:59]} 6. c4 {[%clk 0:03:04]}  Nbd7 {[%clk 0:03:00]} 7. Nc3 {[%clk 0:03:04]}  e5 {[%clk 0:03:00]} 8. e4 {[%clk 0:03:03]}  exd4 {[%clk 0:02:59]} 9. Nxd4 {[%clk 0:03:03]}  Re8 {[%clk 0:03:00]} 10. f3 {[%clk 0:02:51]}  Nc5 {[%clk 0:03:00]} 11. Be3 {[%clk 0:02:34]}  Nfd7 {[%clk 0:03:01]} 12. Qd2 {[%clk 0:02:29]}  Ne5 {[%clk 0:02:59]} 13. b3 {[%clk 0:02:28]}  a5 {[%clk 0:02:53]} 14. h3 {[%clk 0:01:53]}  Bd7 {[%clk 0:02:39]} 15. f4 {[%clk 0:01:46]}  Ned3 {[%clk 0:02:39]} 16. g4 {[%clk 0:01:17]}  f5 {[%clk 0:02:33]} 17. exf5 {[%clk 0:01:10]}  gxf5 {[%clk 0:01:58]} 18. g5 {[%clk 0:01:09]}  c6 {[%clk 0:01:53]} 19. Nc2 {[%clk 0:00:44]}  Nb4 {[%clk 0:01:23]} 20. Rae1 {[%clk 0:00:20]}  Nxc2 {[%clk 0:01:01]} 21. Qxc2 {[%clk 0:00:20]}  Rxe3 {[%clk 0:01:01]} 22. Rxe3 {[%clk 0:00:20]}  Bd4 {[%clk 0:01:01]} 23. Qd2 {[%clk 0:00:17]}  Ne6 {[%clk 0:00:32]} 24. Kh2 {[%clk 0:00:16]}  Bxe3 {[%clk 0:00:24]} 25. Qxe3 {[%clk 0:00:16]}  Qc7 {[%clk 0:00:23]} 26. Re1 {[%clk 0:00:11]}  d5 {[%clk 0:00:19]} 27. Ne2 {[%clk 0:00:00]}  d4 {[%clk 0:00:17]} 0-1


[Site "https://www.chess.com"]

[Event "Titled Tuesday Blitz August 08 Early 2023"]
[White "Kazakov, Mikhail"]
[Black "Haukenfrers, Dale"]
[WhiteFideId "14102749"]
[BlackFideId "2603780"]
[WhiteElo "2383"]
[BlackElo "2148"]
[Result "1-0"]
[Round "11"]
[TimeControl "180+1"]
[Date "2023.08.08"]
[WhiteClock "0:00:06"]
[BlackClock "0:00:45"]
[Board "139"]

1. e4 {[%clk 0:03:00]}  d6 {[%clk 0:03:00]} 2. d4 {[%clk 0:02:54]}  g6 {[%clk 0:03:01]} 3. c4 {[%clk 0:02:52]}  c6 {[%clk 0:03:00]} 4. Nc3 {[%clk 0:02:52]}  Bg7 {[%clk 0:03:00]} 5. Nf3 {[%clk 0:02:52]}  Bg4 {[%clk 0:03:00]} 6. Be2 {[%clk 0:02:52]}  Qb6 {[%clk 0:03:00]} 7. Ng1 {[%clk 0:02:23]}  Bc8 {[%clk 0:02:56]} 8. Nf3 {[%clk 0:02:07]}  Na6 {[%clk 0:02:55]} 9. h3 {[%clk 0:02:04]}  Nf6 {[%clk 0:02:54]} 10. O-O {[%clk 0:02:03]}  O-O {[%clk 0:02:54]} 11. a3 {[%clk 0:02:02]}  Nd7 {[%clk 0:02:54]} 12. b4 {[%clk 0:01:57]}  c5 {[%clk 0:02:49]} 13. bxc5 {[%clk 0:01:33]}  dxc5 {[%clk 0:02:49]} 14. Rb1 {[%clk 0:01:28]}  Qc7 {[%clk 0:02:41]} 15. Nd5 {[%clk 0:01:26]}  Qd8 {[%clk 0:02:42]} 16. Bg5 {[%clk 0:01:24]}  f6 {[%clk 0:02:38]} 17. Bf4 {[%clk 0:01:22]}  e5 {[%clk 0:02:29]} 18. dxe5 {[%clk 0:01:20]}  fxe5 {[%clk 0:02:29]} 19. Bg5 {[%clk 0:01:16]}  Nf6 {[%clk 0:02:14]} 20. Bxf6 {[%clk 0:00:51]}  Bxf6 {[%clk 0:02:14]} 21. Ne1 {[%clk 0:00:51]}  Bg5 {[%clk 0:02:09]} 22. Nd3 {[%clk 0:00:50]}  Qe8 {[%clk 0:01:57]} 23. Qe1 {[%clk 0:00:43]}  Be6 {[%clk 0:01:56]} 24. Rxb7 {[%clk 0:00:39]}  Bxd5 {[%clk 0:01:56]} 25. cxd5 {[%clk 0:00:36]}  c4 {[%clk 0:01:56]} 26. Nb4 {[%clk 0:00:32]}  Nc5 {[%clk 0:01:56]} 27. Rc7 {[%clk 0:00:29]}  Nxe4 {[%clk 0:01:53]} 28. Bxc4 {[%clk 0:00:27]}  Nd6 {[%clk 0:01:53]} 29. Bb3 {[%clk 0:00:23]}  Qb5 {[%clk 0:01:46]} 30. Rc6 {[%clk 0:00:21]}  Bf4 {[%clk 0:01:39]} 31. Rxd6 {[%clk 0:00:19]}  e4 {[%clk 0:01:39]} 32. Re6 {[%clk 0:00:18]}  a5 {[%clk 0:01:38]} 33. d6 {[%clk 0:00:17]}  Kg7 {[%clk 0:01:30]} 34. Rxe4 {[%clk 0:00:16]}  axb4 {[%clk 0:01:28]} 35. axb4 {[%clk 0:00:17]}  Ra3 {[%clk 0:01:26]} 36. Qc3+ {[%clk 0:00:15]}  Kh6 {[%clk 0:01:25]} 37. Qb2 {[%clk 0:00:16]}  Bh2+ {[%clk 0:01:19]} 38. Kxh2 {[%clk 0:00:15]}  Qxf1 {[%clk 0:01:19]} 39. Qxa3 {[%clk 0:00:10]}  Rxf2 {[%clk 0:01:19]} 40. Rg4 {[%clk 0:00:09]}  Qd3 {[%clk 0:01:14]} 41. Qa8 {[%clk 0:00:07]}  Qxd6+ {[%clk 0:01:13]} 42. Kg1 {[%clk 0:00:07]}  Rb2 {[%clk 0:01:02]} 43. Qf3 {[%clk 0:00:05]}  Qb6+ {[%clk 0:00:56]} 44. Kh2 {[%clk 0:00:05]}  Rb1 {[%clk 0:00:48]} 45. Rh4+ {[%clk 0:00:05]}  Kg5 {[%clk 0:00:45]} 46. Qf4# {[%clk 0:00:06]} 1-0


[Site "https://www.chess.com"]

[Event "Titled Tuesday Blitz August 08 Early 2023"]
[White "Gueci, Tea"]
[Black "Tqebuchava, Zurab"]
[WhiteFideId "872342"]
[BlackFideId "13601113"]
[WhiteElo "2375"]
[BlackElo "2260"]
[Result "0-1"]
[Round "11"]
[TimeControl "180+1"]
[Date "2023.08.08"]
[WhiteClock "0:00:02"]
[BlackClock "0:00:02"]
[Board "140"]

1. e4 {[%clk 0:02:54]}  d6 {[%clk 0:02:58]} 2. d4 {[%clk 0:02:54]}  g6 {[%clk 0:02:57]} 3. Nc3 {[%clk 0:02:54]}  Bg7 {[%clk 0:02:57]} 4. Nf3 {[%clk 0:02:54]}  Bg4 {[%clk 0:02:57]} 5. Be2 {[%clk 0:02:53]}  Bxf3 {[%clk 0:02:55]} 6. Bxf3 {[%clk 0:02:53]}  Nd7 {[%clk 0:02:55]} 7. O-O {[%clk 0:02:52]}  e5 {[%clk 0:02:55]} 8. dxe5 {[%clk 0:02:51]}  dxe5 {[%clk 0:02:46]} 9. Be3 {[%clk 0:02:40]}  Ngf6 {[%clk 0:02:42]} 10. Qd2 {[%clk 0:02:37]}  O-O {[%clk 0:02:40]} 11. Rad1 {[%clk 0:02:37]}  c6 {[%clk 0:02:37]} 12. Qd6 {[%clk 0:02:33]}  Re8 {[%clk 0:02:34]} 13. Bg5 {[%clk 0:02:17]}  Bf8 {[%clk 0:02:15]} 14. Qd2 {[%clk 0:02:10]}  Qc7 {[%clk 0:02:03]} 15. h4 {[%clk 0:01:59]}  Rad8 {[%clk 0:01:57]} 16. Qc1 {[%clk 0:01:53]}  h5 {[%clk 0:01:39]} 17. Be2 {[%clk 0:01:46]}  Be7 {[%clk 0:01:22]} 18. a3 {[%clk 0:01:46]}  Nc5 {[%clk 0:01:20]} 19. Qe3 {[%clk 0:01:42]}  Ne6 {[%clk 0:01:13]} 20. Bc4 {[%clk 0:01:34]}  Nxg5 {[%clk 0:00:58]} 21. Qxg5 {[%clk 0:01:35]}  Kg7 {[%clk 0:00:52]} 22. Qg3 {[%clk 0:01:29]}  Bc5 {[%clk 0:00:40]} 23. Qf3 {[%clk 0:01:20]}  Ng4 {[%clk 0:00:26]} 24. b4 {[%clk 0:01:10]}  Bb6 {[%clk 0:00:22]} 25. Rd3 {[%clk 0:00:28]}  Rxd3 {[%clk 0:00:20]} 26. cxd3 {[%clk 0:00:28]}  Qe7 {[%clk 0:00:19]} 27. Nd1 {[%clk 0:00:25]}  Rf8 {[%clk 0:00:17]} 28. g3 {[%clk 0:00:25]}  Qd6 {[%clk 0:00:15]} 29. Ne3 {[%clk 0:00:20]}  Bxe3 {[%clk 0:00:09]} 30. fxe3 {[%clk 0:00:21]}  Qe7 {[%clk 0:00:07]} 31. Qe2 {[%clk 0:00:18]}  Qd6 {[%clk 0:00:06]} 32. Rf3 {[%clk 0:00:14]}  Qe7 {[%clk 0:00:06]} 33. Qf1 {[%clk 0:00:14]}  f6 {[%clk 0:00:06]} 34. Qe2 {[%clk 0:00:12]}  Qd6 {[%clk 0:00:05]} 35. Rf1 {[%clk 0:00:11]}  Qe7 {[%clk 0:00:05]} 36. Rc1 {[%clk 0:00:10]}  Rd8 {[%clk 0:00:05]} 37. Qc2 {[%clk 0:00:08]}  Rf8 {[%clk 0:00:05]} 38. Qe2 {[%clk 0:00:07]}  Qd6 {[%clk 0:00:05]} 39. Rd1 {[%clk 0:00:07]}  Qe7 {[%clk 0:00:05]} 40. d4 {[%clk 0:00:08]}  exd4 {[%clk 0:00:04]} 41. exd4 {[%clk 0:00:09]}  Qd6 {[%clk 0:00:04]} 42. Qf3 {[%clk 0:00:06]}  Re8 {[%clk 0:00:02]} 43. e5 {[%clk 0:00:06]}  fxe5 {[%clk 0:00:02]} 44. Qf7+ {[%clk 0:00:06]}  Kh6 {[%clk 0:00:02]} 45. Re1 {[%clk 0:00:03]}  Rf8 {[%clk 0:00:01]} 46. Qxb7 {[%clk 0:00:02]}  exd4 {[%clk 0:00:01]} 47. Kh1 {[%clk 0:00:02]}  Qxg3 {[%clk 0:00:01]} 48. Rg1 {[%clk 0:00:02]}  Qh2# {[%clk 0:00:02]} 0-1


[Site "https://www.chess.com"]

[Event "Titled Tuesday Blitz August 08 Early 2023"]
[White "Kohler, Aran"]
[Black "Kanyamarala, Trisha"]
[WhiteFideId "1002856"]
[BlackFideId "45004722"]
[WhiteElo "2256"]
[BlackElo "2356"]
[Result "0-1"]
[Round "11"]
[TimeControl "180+1"]
[Date "2023.08.08"]
[WhiteClock "0:00:20"]
[BlackClock "0:01:24"]
[Board "141"]

1. d4 {[%clk 0:03:00]}  Nf6 {[%clk 0:02:57]} 2. c3 {[%clk 0:02:59]}  d5 {[%clk 0:02:57]} 3. Bg5 {[%clk 0:02:59]}  e6 {[%clk 0:02:58]} 4. Nd2 {[%clk 0:02:58]}  c5 {[%clk 0:02:59]} 5. e3 {[%clk 0:02:58]}  Nc6 {[%clk 0:02:59]} 6. f4 {[%clk 0:02:50]}  Be7 {[%clk 0:02:58]} 7. Bd3 {[%clk 0:02:49]}  h6 {[%clk 0:02:54]} 8. Bh4 {[%clk 0:02:35]}  cxd4 {[%clk 0:02:48]} 9. exd4 {[%clk 0:02:34]}  Qc7 {[%clk 0:02:43]} 10. Nh3 {[%clk 0:02:28]}  Ne4 {[%clk 0:02:32]} 11. Bxe7 {[%clk 0:02:21]}  Qxe7 {[%clk 0:02:33]} 12. Bxe4 {[%clk 0:02:12]}  dxe4 {[%clk 0:02:34]} 13. Nxe4 {[%clk 0:02:12]}  Qh4+ {[%clk 0:02:23]} 14. Nef2 {[%clk 0:02:11]}  O-O {[%clk 0:02:16]} 15. O-O {[%clk 0:02:11]}  b6 {[%clk 0:02:15]} 16. Qg4 {[%clk 0:02:11]}  Qe7 {[%clk 0:02:12]} 17. Rae1 {[%clk 0:02:08]}  f5 {[%clk 0:02:10]} 18. Qe2 {[%clk 0:02:02]}  Qd6 {[%clk 0:02:08]} 19. Nd3 {[%clk 0:02:01]}  Ba6 {[%clk 0:02:02]} 20. Rf3 {[%clk 0:01:58]}  Rfe8 {[%clk 0:01:58]} 21. Nhf2 {[%clk 0:01:51]}  Rad8 {[%clk 0:01:53]} 22. Re3 {[%clk 0:01:42]}  Bc8 {[%clk 0:01:38]} 23. Ne5 {[%clk 0:01:25]}  Nxe5 {[%clk 0:01:37]} 24. Rxe5 {[%clk 0:01:25]}  Re7 {[%clk 0:01:36]} 25. g4 {[%clk 0:01:23]}  fxg4 {[%clk 0:01:34]} 26. Qxg4 {[%clk 0:01:24]}  Rf8 {[%clk 0:01:33]} 27. Ne4 {[%clk 0:01:20]}  Qc6 {[%clk 0:01:31]} 28. Re2 {[%clk 0:01:07]}  Qc4 {[%clk 0:01:27]} 29. b3 {[%clk 0:01:05]}  Qd3 {[%clk 0:01:27]} 30. Kf2 {[%clk 0:00:34]}  Ref7 {[%clk 0:01:26]} 31. Qg3 {[%clk 0:00:23]}  Rxf4+ {[%clk 0:01:25]} 32. Ke1 {[%clk 0:00:20]}  Rf1# {[%clk 0:01:24]} 0-1


[Site "https://www.chess.com"]

[Event "Titled Tuesday Blitz August 08 Early 2023"]
[White "Shapiro, Daniel"]
[Black "Pumpkin_in_moonlight"]
[WhiteFideId "2001780"]
[WhiteElo "2344"]
[BlackElo "2252"]
[Result "0-1"]
[Round "11"]
[TimeControl "180+1"]
[Date "2023.08.08"]
[WhiteClock "0:00:05"]
[BlackClock "0:00:30"]
[Board "142"]

1. d4 {[%clk 0:03:00]}  d5 {[%clk 0:02:59]} 2. c4 {[%clk 0:03:00]}  e6 {[%clk 0:02:58]} 3. Nf3 {[%clk 0:03:00]}  c6 {[%clk 0:02:56]} 4. Qc2 {[%clk 0:02:59]}  Nf6 {[%clk 0:02:43]} 5. g3 {[%clk 0:02:55]}  dxc4 {[%clk 0:02:20]} 6. Qxc4 {[%clk 0:02:54]}  b5 {[%clk 0:02:20]} 7. Qc2 {[%clk 0:02:55]}  Bb7 {[%clk 0:02:20]} 8. Bg2 {[%clk 0:02:55]}  Nbd7 {[%clk 0:02:20]} 9. Nbd2 {[%clk 0:02:55]}  c5 {[%clk 0:02:18]} 10. O-O {[%clk 0:02:22]}  Rc8 {[%clk 0:02:12]} 11. Qb3 {[%clk 0:02:07]}  Qb6 {[%clk 0:02:09]} 12. a4 {[%clk 0:02:07]}  a6 {[%clk 0:01:57]} 13. axb5 {[%clk 0:02:06]}  axb5 {[%clk 0:01:57]} 14. dxc5 {[%clk 0:02:01]}  Bxc5 {[%clk 0:01:54]} 15. e3 {[%clk 0:01:58]}  Bd5 {[%clk 0:01:51]} 16. Qd1 {[%clk 0:01:58]}  O-O {[%clk 0:01:48]} 17. Qe2 {[%clk 0:01:57]}  Ne4 {[%clk 0:01:21]} 18. Nxe4 {[%clk 0:01:57]}  Bxe4 {[%clk 0:01:21]} 19. Nd2 {[%clk 0:01:57]}  Bxg2 {[%clk 0:01:18]} 20. Kxg2 {[%clk 0:01:58]}  Rfd8 {[%clk 0:01:17]} 21. Nb3 {[%clk 0:01:57]}  Be7 {[%clk 0:01:04]} 22. e4 {[%clk 0:01:57]}  Ne5 {[%clk 0:00:59]} 23. Be3 {[%clk 0:01:57]}  Qb7 {[%clk 0:00:58]} 24. f3 {[%clk 0:01:34]}  Rd3 {[%clk 0:00:55]} 25. Nd2 {[%clk 0:01:19]}  Rc2 {[%clk 0:00:41]} 26. f4 {[%clk 0:01:06]}  Qxe4+ {[%clk 0:00:36]} 27. Nxe4 {[%clk 0:00:59]}  Rxe2+ {[%clk 0:00:36]} 28. Rf2 {[%clk 0:00:55]}  Rdxe3 {[%clk 0:00:34]} 29. Ra8+ {[%clk 0:00:54]}  Bf8 {[%clk 0:00:34]} 30. fxe5 {[%clk 0:00:44]}  Rxe4 {[%clk 0:00:30]} 31. Kf1 {[%clk 0:00:10]}  Rxf2+ {[%clk 0:00:30]} 32. Kxf2 {[%clk 0:00:11]}  Rb4 {[%clk 0:00:30]} 33. Ke3 {[%clk 0:00:05]}  Rxb2 {[%clk 0:00:30]} 0-1


[Site "https://www.chess.com"]

[Event "Titled Tuesday Blitz August 08 Early 2023"]
[White "Nithyalakshmi, Sivanesan"]
[Black "Vaglio Munoz, Jaime"]
[WhiteFideId "5706955"]
[BlackFideId "6500145"]
[WhiteElo "2335"]
[BlackElo "2240"]
[Result "1-0"]
[Round "11"]
[TimeControl "180+1"]
[Date "2023.08.08"]
[WhiteClock "0:00:17"]
[BlackClock "0:00:00"]
[Board "143"]

1. e4 {[%clk 0:02:57]}  c5 {[%clk 0:02:59]} 2. Nc3 {[%clk 0:02:55]}  Qa5 {[%clk 0:02:59]} 3. f4 {[%clk 0:02:53]}  a6 {[%clk 0:02:59]} 4. Nf3 {[%clk 0:02:53]}  b5 {[%clk 0:02:59]} 5. g3 {[%clk 0:02:48]}  Bb7 {[%clk 0:02:59]} 6. d3 {[%clk 0:02:44]}  b4 {[%clk 0:02:58]} 7. Nb1 {[%clk 0:02:41]}  e6 {[%clk 0:02:58]} 8. Bg2 {[%clk 0:02:39]}  d5 {[%clk 0:02:58]} 9. e5 {[%clk 0:02:37]}  h5 {[%clk 0:02:56]} 10. O-O {[%clk 0:02:35]}  g6 {[%clk 0:02:56]} 11. Ng5 {[%clk 0:02:28]}  Be7 {[%clk 0:02:55]} 12. Bd2 {[%clk 0:02:20]}  Qc7 {[%clk 0:02:53]} 13. Nf3 {[%clk 0:02:16]}  Nh6 {[%clk 0:02:53]} 14. Qe1 {[%clk 0:02:12]}  Nf5 {[%clk 0:02:52]} 15. c3 {[%clk 0:02:09]}  a5 {[%clk 0:02:52]} 16. a3 {[%clk 0:02:06]}  bxc3 {[%clk 0:02:45]} 17. bxc3 {[%clk 0:02:06]}  Ba6 {[%clk 0:02:45]} 18. Qe2 {[%clk 0:02:03]}  Nc6 {[%clk 0:02:36]} 19. a4 {[%clk 0:02:00]}  Rb8 {[%clk 0:02:35]} 20. Na3 {[%clk 0:01:59]}  d4 {[%clk 0:02:25]} 21. c4 {[%clk 0:01:58]}  Nb4 {[%clk 0:02:23]} 22. Nb5 {[%clk 0:01:55]}  Qd7 {[%clk 0:02:15]} 23. Rfc1 {[%clk 0:01:37]}  Kf8 {[%clk 0:02:12]} 24. Ne1 {[%clk 0:01:37]}  Kg7 {[%clk 0:02:11]} 25. Nc2 {[%clk 0:01:34]}  Bb7 {[%clk 0:02:02]} 26. Nxb4 {[%clk 0:01:28]}  axb4 {[%clk 0:01:55]} 27. Be4 {[%clk 0:01:19]}  Nh6 {[%clk 0:01:39]} 28. h3 {[%clk 0:01:17]}  Nf5 {[%clk 0:01:37]} 29. Kf2 {[%clk 0:01:15]}  h4 {[%clk 0:01:36]} 30. g4 {[%clk 0:01:12]}  Ng3 {[%clk 0:01:36]} 31. Qf3 {[%clk 0:01:11]}  Bxe4 {[%clk 0:01:26]} 32. dxe4 {[%clk 0:01:11]}  Qc6 {[%clk 0:01:23]} 33. Re1 {[%clk 0:01:09]}  Rhd8 {[%clk 0:01:04]} 34. f5 {[%clk 0:00:46]}  gxf5 {[%clk 0:00:55]} 35. gxf5 {[%clk 0:00:43]}  exf5 {[%clk 0:00:54]} 36. exf5 {[%clk 0:00:40]}  Qxf3+ {[%clk 0:00:48]} 37. Kxf3 {[%clk 0:00:40]}  f6 {[%clk 0:00:46]} 38. Kg4 {[%clk 0:00:35]}  fxe5 {[%clk 0:00:42]} 39. Rxe5 {[%clk 0:00:35]}  Bf6 {[%clk 0:00:42]} 40. Re6 {[%clk 0:00:32]}  Rg8 {[%clk 0:00:41]} 41. Nd6 {[%clk 0:00:25]}  b3 {[%clk 0:00:23]} 42. Rb1 {[%clk 0:00:25]}  b2 {[%clk 0:00:23]} 43. Kf3 {[%clk 0:00:25]}  Rgd8 {[%clk 0:00:15]} 44. Nb5 {[%clk 0:00:23]}  Nxf5 {[%clk 0:00:14]} 45. Rxb2 {[%clk 0:00:22]}  Kf7 {[%clk 0:00:14]} 46. Ra6 {[%clk 0:00:20]}  d3 {[%clk 0:00:12]} 47. Rb1 {[%clk 0:00:19]}  Nd4+ {[%clk 0:00:10]} 48. Ke4 {[%clk 0:00:19]}  Re8+ {[%clk 0:00:06]} 49. Kxd3 {[%clk 0:00:19]}  Rbd8 {[%clk 0:00:07]} 50. Nd6+ {[%clk 0:00:18]}  Kg6 {[%clk 0:00:00]} 51. Rg1+ {[%clk 0:00:17]} 1-0


[Site "https://www.chess.com"]